Workbook

Sheet 国土系统体检名单
A1: 报名序号 | B1: 姓名 | C1: 考号 | D1: 性别 | E1: 民族 | F1: 报考部门 | G1: 报考职位 | H1: 卷面成绩 | I1: 卷面成绩 ÷1.2 | J1: 民族加分 2.5 | K1: 笔试成绩 | L1: 名次 | M1: 面试成绩 | N1: 笔试成绩加权50% | O1: 面试成绩加权50% | P1: 总成绩 | Q1: 名次 | R1: 体检时间
A2: 06369 | B2: 郭石 | C2: 11122020106 | D2: 男 | E2: 其他少数民族 | F2: 乌兰浩特市不动产登记中心 | G2: 测绘（一般人员岗位） | H2: 86.7 | I2: =H2/1.2 -> 72.250 | K2: =I2+J2 -> 72.250 | L2: 1 | M2: 82.6 | N2: =K2*50% -> 36.125 | O2: =M2*50% -> 41.3 | P2: =N2+O2 -> 77.425 | Q2: 1 | R2: 2018-01-31
A3: 06315 | B3: 孙孟洋 | C3: 11122022305 | D3: 男 | E3: 汉族 | F3: 乌兰浩特市不动产登记中心 | G3: 测绘（一般人员岗位） | H3: 84.6 | I3: 70.500 | K3: 70.500 | L3: 2 | M3: 78.2 | N3: 35.250 | O3: 39.1 | P3: 74.350 | Q3: 2 | R3: 2018-01-31
A4: 06380 | B4: 王旭 | C4: 11122021323 | D4: 男 | E4: 汉族 | F4: 乌兰浩特市不动产登记中心 | G4: 测绘（一般人员岗位） | H4: 79.5 | I4: 66.250 | K4: 66.250 | L4: 7 | M4: 82 | N4: 33.125 | O4: 41 | P4: 74.125 | Q4: 3 | R4: 2018-01-31
A5: 06363 | B5: 徐然 | C5: 11122022316 | D5: 女 | E5: 汉族 | F5: 乌兰浩特市不动产登记中心 | G5: 测绘（一般人员岗位） | H5: 84.3 | I5: 70.250 | K5: 70.250 | L5: 3 | M5: 76.6 | N5: 35.125 | O5: 38.3 | P5: 73.425 | Q5: 4 | R5: 2018-01-31
A6: 06268 | B6: 宋鹏飞 | C6: 11122021724 | D6: 男 | E6: 蒙古族 | F6: 乌兰浩特市不动产登记中心 | G6: 测绘（一般人员岗位） | H6: 79.8 | I6: 66.500 | J6: 2.5 | K6: 69.000 | L6: 4 | M6: 73.2 | N6: 34.500 | O6: 36.6 | P6: 71.100 | Q6: 5 | R6: 2018-01-31
A7: 06287 | B7: 赵爱东 | C7: 11122020327 | D7: 男 | E7: 蒙古族 | F7: 乌兰浩特市不动产登记中心 | G7: 测绘（一般人员岗位） | H7: 76.7 | I7: 63.917 | J7: 2.5 | K7: 66.417 | L7: 6 | M7: 75.4 | N7: 33.208 | O7: 37.7 | P7: 70.908 | Q7: 6 | R7: 2018-01-31
A8: 06264 | B8: 庄丙成 | C8: 11122022129 | D8: 男 | E8: 汉族 | F8: 乌兰浩特市不动产登记中心 | G8: 测绘（一般人员岗位） | H8: 74.2 | I8: 61.833 | K8: 61.833 | L8: 14 | M8: 77.4 | N8: 30.917 | O8: 38.7 | P8: 69.617 | Q8: 7 | R8: 2018-01-31
A9: 06265 | B9: 博凯 | C9: 11122022816 | D9: 男 | E9: 蒙古族 | F9: 乌兰浩特市不动产登记中心 | G9: 测绘（一般人员岗位） | H9: 74.8 | I9: 62.333 | J9: 2.5 | K9: 64.833 | L9: 9 | M9: 74 | N9: 32.417 | O9: 37 | P9: 69.417 | Q9: 8 | R9: 2018-01-31
A10: 04893 | B10: 白宝音图 | C10: 11122020727 | D10: 男 | E10: 蒙古族 | F10: 乌兰浩特市不动产登记中心 | G10: 出纳员（一般人员岗位） | H10: 83.2 | I10: 69.333 | J10: 2.5 | K10: 71.833 | L10: 2 | M10: 74.2 | N10: 35.917 | O10: 37.1 | P10: 73.017 | Q10: 1 | R10: 2018-01-31
A11: 00874 | B11: 包车乐木格 | C11: 31122051304 | D11: 女 | E11: 蒙古族 | F11: 乌兰浩特市不动产登记中心 | G11: 地理信息技术员（蒙汉兼通人员岗位） | H11: 73.4 | I11: 61.167 | J11: 2.5 | K11: 63.667 | L11: 1 | M11: 80.8 | N11: 31.833 | O11: 40.4 | P11: 72.233 | Q11: 1 | R11: 2018-01-31
A12: 00527 | B12: 屈延政 | C12: 11122021008 | D12: 男 | E12: 蒙古族 | F12: 乌兰浩特市不动产登记中心 | G12: 地理信息技术员（项目人员岗位） | H12: 82.3 | I12: 68.583 | J12: 2.5 | K12: 71.083 | L12: 4 | M12: 81.6 | N12: 35.542 | O12: 40.8 | P12: 76.342 | Q12: 1 | R12: 2018-01-31
A13: 00610 | B13: 李天阔 | C13: 11122021727 | D13: 男 | E13: 蒙古族 | F13: 乌兰浩特市不动产登记中心 | G13: 地理信息技术员（项目人员岗位） | H13: 82.8 | I13: 69.000 | J13: 2.5 | K13: 71.500 | L13: 2 | M13: 80.4 | N13: 35.750 | O13: 40.2 | P13: 75.950 | Q13: 2 | R13: 2018-01-31
A14: 01604 | B14: 姚旺 | C14: 11122022613 | D14: 男 | E14: 汉族 | F14: 乌兰浩特市不动产登记中心 | G14: 地理信息技术员（项目人员岗位） | H14: 91.1 | I14: =H14/1.2 -> 75.917 | K14: =I14+J14 -> 75.917 | L14: 1 | M14: 73.4 | N14: =K14*50% -> 37.958 | O14: =M14*50% -> 36.7 | P14: =N14+O14 -> 74.658 | Q14: 3 | R14: 2018-01-31
A15: 03861 | B15: 王立鑫 | C15: 11122022217 | D15: 男 | E15: 蒙古族 | F15: 乌兰浩特市不动产登记中心 | G15: 地理信息技术员（项目人员岗位） | H15: 82.8 | I15: 69.000 | J15: 2.5 | K15: 71.500 | L15: 3 | M15: 77.4 | N15: 35.750 | O15: 38.7 | P15: 74.450 | Q15: 4 | R15: 2018-01-31
A16: 01400 | B16: 王晶 | C16: 11122022318 | D16: 女 | E16: 汉族 | F16: 乌兰浩特市不动产登记中心 | G16: 地理信息技术员（项目人员岗位） | H16: 79.4 | I16: 66.167 | K16: 66.167 | L16: 6 | M16: 79.4 | N16: 33.083 | O16: 39.7 | P16: 72.783 | Q16: 5 | R16: 2018-01-31
A17: 03478 | B17: 胡日查 | C17: 11122023128 | D17: 男 | E17: 蒙古族 | F17: 乌兰浩特市不动产登记中心 | G17: 地理信息技术员（一般人员岗位） | H17: 89.3 | I17: 74.417 | J17: 2.5 | K17: 76.917 | L17: 2 | M17: 79.4 | N17: 38.458 | O17: 39.7 | P17: 78.158 | Q17: 1 | R17: 2018-01-31
A18: 03018 | B18: 杨月亭 | C18: 11122022814 | D18: 女 | E18: 汉族 | F18: 乌兰浩特市不动产登记中心 | G18: 会 计（一般人员岗位） | H18: 91.2 | I18: 76.000 | K18: 76.000 | L18: 4 | M18: 81.4 | N18: 38.000 | O18: 40.7 | P18: 78.700 | Q18: 1 | R18: 2018-01-31
A19: 00026 | B19: 妩妮日 | C19: 11122020315 | D19: 女 | E19: 蒙古族 | F19: 乌兰浩特市不动产登记中心 | G19: 会 计（一般人员岗位） | H19: 91.5 | I19: 76.250 | J19: 2.5 | K19: 78.750 | L19: 2 | M19: 73.8 | N19: 39.375 | O19: 36.9 | P19: 76.275 | Q19: 2 | R19: 2018-01-31
A20: 01679 | B20: 于红岩 | C20: 31122051319 | D20: 女 | E20: 蒙古族 | F20: 乌兰浩特市不动产登记中心 | G20: 司法助理（蒙汉兼通人员岗位） | H20: 68 | I20: 56.667 | J20: 2.5 | K20: 59.167 | L20: 2 | M20: 74.4 | N20: 29.583 | O20: 37.2 | P20: 66.783 | Q20: 1 | R20: 2018-01-31
A21: 01668 | B21: 邵海岩 | C21: 11122023107 | D21: 女 | E21: 蒙古族 | F21: 乌兰浩特市不动产登记中心 | G21: 司法助理（一般人员岗位） | H21: 90.8 | I21: 75.667 | J21: 2.5 | K21: 78.167 | L21: 1 | M21: 82.4 | N21: 39.083 | O21: 41.2 | P21: 80.283 | Q21: 1 | R21: 2018-01-31
A22: 03291 | B22: 曾光 | C22: 11122021505 | D22: 女 | E22: 汉族 | F22: 乌兰浩特市不动产登记中心 | G22: 土地资源环境工程技术员（一般人员岗位） | H22: 90.3 | I22: 75.250 | K22: 75.250 | L22: 2 | M22: 81 | N22: 37.625 | O22: 40.5 | P22: 78.125 | Q22: 1 | R22: 2018-01-31
A23: 02753 | B23: 李影 | C23: 11122020211 | D23: 女 | E23: 汉族 | F23: 乌兰浩特市不动产登记中心 | G23: 土地资源环境工程技术员（一般人员岗位） | H23: 90.9 | I23: 75.750 | K23: 75.750 | L23: 1 | M23: 80.2 | N23: 37.875 | O23: 40.1 | P23: 77.975 | Q23: 2 | R23: 2018-01-31
A24: 00231 | B24: 巴图 | C24: 11122021112 | D24: 男 | E24: 蒙古族 | F24: 乌兰浩特市不动产登记中心 | G24: 文秘(项目人员岗位) | H24: 80.8 | I24: =H24/1.2 -> 67.333 | J24: 2.5 | K24: =I24+J24 -> 69.833 | L24: 3 | M24: 83.2 | N24: =K24*50% -> 34.917 | O24: =M24*50% -> 41.6 | P24: =N24+O24 -> 76.517 | Q24: 1 | R24: 2018-01-31
A25: 02612 | B25: 田嫒 | C25: 11122021026 | D25: 女 | E25: 汉族 | F25: 乌兰浩特市不动产登记中心 | G25: 文秘(项目人员岗位) | H25: 86.2 | I25: 71.833 | K25: 71.833 | L25: 1 | M25: 75.6 | N25: 35.917 | O25: 37.8 | P25: 73.717 | Q25: 2 | R25: 2018-01-31
A26: 00280 | B26: 谢欢 | C26: 11122022404 | D26: 女 | E26: 蒙古族 | F26: 乌兰浩特市不动产登记中心 | G26: 文秘（一般人员岗位） | H26: 91.6 | I26: 76.333 | J26: 2.5 | K26: 78.833 | L26: 1 | M26: 83 | N26: 39.417 | O26: 41.5 | P26: 80.917 | Q26: 1 | R26: 2018-01-31
A27: 02638 | B27: 阿如娜 | C27: 11122023127 | D27: 女 | E27: 蒙古族 | F27: 乌兰浩特市不动产登记中心 | G27: 信息员（一般人员岗位） | H27: 94.8 | I27: 79.000 | J27: 2.5 | K27: 81.500 | L27: 1 | M27: 77.4 | N27: 40.750 | O27: 38.7 | P27: 79.450 | Q27: 1 | R27: 2018-01-31
F31: 26

Sheet 一职、二职体检名单
A1: 姓名 | B1: 民族 | C1: 考号 | D1: 报考部门 | E1: 报考职位 | F1: 成绩 | G1: 名次 | H1: 体检时间
A2: 孙欣然 | B2: 蒙古族 | C2: 11222140209 | D2: 乌兰浩特市第二职业中等专业学校 | E2: 旅游宣传实习指导教辅人员（一般人员岗位） | F2: 64.99 | G2: 1 | H2: 2018-01-31
A3: 吕静 | B3: 汉族 | C3: 11322140422 | D3: 乌兰浩特市第二职业中等专业学校 | E3: 旅游专业实习指导教辅人员（一般人员岗位） | F3: 74.36 | G3: 1 | H3: 2018-01-31
A4: 屈立强 | B4: 汉族 | C4: 11422140513 | D4: 乌兰浩特市第二职业中等专业学校 | E4: 烹饪专业实习指导教辅人员（一般人员岗位） | F4: 74.21 | G4: 1 | H4: 2018-01-31
A5: 赵丙坤 | B5: 汉族 | C5: 11422140514 | D5: 乌兰浩特市第二职业中等专业学校 | E5: 烹饪专业实习指导教辅人员（一般人员岗位） | F5: 73.18 | G5: 2 | H5: 2018-01-31
A6: 董金芳 | B6: 蒙古族 | C6: 31522140222 | D6: 乌兰浩特市第一职业中等专业学校 | E6: 护理专业实习指导教辅人员（蒙汉兼通人员岗位） | F6: 62.37 | G6: 1 | H6: 2018-01-31
A7: 李旸旸 | B7: 汉族 | C7: 11522140123 | D7: 乌兰浩特市第一职业中等专业学校 | E7: 护理专业实习指导教辅人员（一般人员岗位） | F7: 61.87 | G7: 1 | H7: 2018-01-31
A8: 扎拉根巴乙拉 | B8: 蒙古族 | C8: 31622140230 | D8: 乌兰浩特市第一职业中等专业学校 | E8: 汽修专业实习指导教辅人员（蒙汉兼通人员岗位） | F8: 60.17 | G8: 1 | H8: 2018-01-31
A9: 包胡斯勒 | B9: 蒙古族 | C9: 11622140611 | D9: 乌兰浩特市第一职业中等专业学校 | E9: 汽修专业实习指导教辅人员（项目人员岗位） | F9: 53.44 | G9: 1 | H9: 2018-01-31
A10: 王浩 | B10: 汉族 | C10: 11622140526 | D10: 乌兰浩特市第一职业中等专业学校 | E10: 汽修专业实习指导教辅人员（项目人员岗位） | F10: 49.82 | G10: 2 | H10: 2018-01-31
A11: 邱迅 | B11: 汉族 | C11: 11622140609 | D11: 乌兰浩特市第一职业中等专业学校 | E11: 汽修专业实习指导教辅人员（项目人员岗位） | F11: 48.34 | G11: 3 | H11: 2018-01-31
A12: 郭志鹏 | B12: 汉族 | C12: 11622140610 | D12: 乌兰浩特市第一职业中等专业学校 | E12: 汽修专业实习指导教辅人员（一般人员岗位） | F12: 61.97 | G12: 1 | H12: 2018-01-31
A16: 11

Sheet 教育系统其他岗位体检名单
A1: 报名序号 | B1: 姓名 | C1: 考号 | D1: 性别 | E1: 民族 | F1: 报考部门 | G1: 报考职位 | H1: 卷面成绩 | I1: 卷面成绩 ÷1.2 | J1: 民族加分 2.5 | K1: 笔试成绩 | L1: 名次 | M1: 面试分组 | N1: 面试成绩 | O1: 笔试成绩加权50% | P1: 面试成绩加权50% | Q1: 总成绩 | R1: 名次 | S1: 体检时间
A2: 02878 | B2: 李锐 | C2: 12622033008 | D2: 男 | E2: 蒙古族 | F2: 第七中学、第十二中学 | G2: 初中数学教师（项目人员岗位） | H2: 70.9 | I2: 59.083 | J2: 2.5 | K2: 61.583 | L2: 1 | M2: 1 | N2: 88.8 | O2: 30.792 | P2: 44.4 | Q2: 75.192 | R2: 1 | S2: 2018-02-01
A3: 04179 | B3: 李艳凤 | C3: 12622030910 | D3: 女 | E3: 汉族 | F3: 第七中学、第十二中学 | G3: 初中数学教师（一般人员岗位） | H3: 90.1 | I3: 75.083 | K3: 75.083 | L3: 1 | M3: 1 | N3: 93.4 | O3: 37.542 | P3: 46.7 | Q3: 84.242 | R3: 1 | S3: 2018-02-01
A4: 02923 | B4: 房安亮 | C4: 12622033002 | D4: 男 | E4: 汉族 | F4: 第七中学、第十二中学 | G4: 初中数学教师（一般人员岗位） | H4: 84.1 | I4: 70.083 | K4: 70.083 | L4: 4 | M4: 1 | N4: 94 | O4: 35.042 | P4: 47 | Q4: 82.042 | R4: 2 | S4: 2018-02-01
A5: 03140 | B5: 赵月 | C5: 13022032024 | D5: 女 | E5: 汉族 | F5: 兴安第一小学、合展小学、和平第一小学、和平第二小学、和平第三小学、铁西第一小学 | G5: 小学数学教师（一般人员岗位） | H5: 79.6 | I5: 66.333 | K5: 66.333 | L5: 1 | M5: 1 | N5: 91.6 | O5: 33.167 | P5: 45.8 | Q5: 78.967 | R5: 1 | S5: 2018-02-01
A6: 01622 | B6: 申建莉 | C6: 13022031825 | D6: 女 | E6: 蒙古族 | F6: 兴安第一小学、合展小学、和平第一小学、和平第二小学、和平第三小学、铁西第一小学 | G6: 小学数学教师（一般人员岗位） | H6: 70.5 | I6: 58.750 | J6: 2.5 | K6: 61.250 | L6: 3 | M6: 1 | N6: 93.6 | O6: 30.625 | P6: 46.8 | Q6: 77.425 | R6: 2 | S6: 2018-02-01
A7: 00996 | B7: 王明月 | C7: 13022031808 | D7: 女 | E7: 其他少数民族 | F7: 兴安第一小学、合展小学、和平第一小学、和平第二小学、和平第三小学、铁西第一小学 | G7: 小学数学教师（一般人员岗位） | H7: 71.2 | I7: 59.333 | K7: 59.333 | L7: 4 | M7: 1 | N7: 93.8 | O7: 29.667 | P7: 46.9 | Q7: 76.567 | R7: 3 | S7: 2018-02-01
A8: 02806 | B8: 张璐 | C8: 12122032919 | D8: 女 | E8: 汉族 | F8: 第四中学、第十五中学 | G8: 高中数学教师（一般人员岗位） | H8: 100.7 | I8: 83.917 | K8: 83.917 | L8: 1 | M8: 2 | N8: 86.2 | O8: 41.958 | P8: 43.1 | Q8: 85.058 | R8: 1 | S8: 2018-02-01
A9: 04235 | B9: 王新 | C9: 12122032917 | D9: 女 | E9: 其他少数民族 | F9: 第四中学、第十五中学 | G9: 高中数学教师（一般人员岗位） | H9: 98.5 | I9: 82.083 | K9: 82.083 | L9: 2 | M9: 2 | N9: 84.6 | O9: 41.042 | P9: 42.3 | Q9: 83.342 | R9: 2 | S9: 2018-02-01
A10: 05398 | B10: 王晓桐 | C10: 13022031826 | D10: 女 | E10: 汉族 | F10: 兴安第一小学、合展小学、和平第一小学、和平第二小学、和平第三小学、铁西第一小学 | G10: 小学数学教师（项目人员岗位） | H10: 78 | I10: 65.000 | K10: 65.000 | L10: 1 | M10: 2 | N10: 84.8 | O10: 32.500 | P10: 42.4 | Q10: 74.900 | R10: 1 | S10: 2018-02-01
A11: 00348 | B11: 梁玮 | C11: 13022031903 | D11: 女 | E11: 蒙古族 | F11: 兴安第一小学、合展小学、和平第一小学、和平第二小学、和平第三小学、铁西第一小学 | G11: 小学数学教师（项目人员岗位） | H11: 64.3 | I11: 53.583 | J11: 2.5 | K11: 56.083 | L11: 2 | M11: 2 | N11: 85 | O11: 28.042 | P11: 42.5 | Q11: 70.542 | R11: 2 | S11: 2018-02-01
A12: 01616 | B12: 刘晓彤 | C12: 13022031710 | D12: 女 | E12: 汉族 | F12: 兴安第一小学、合展小学、和平第一小学、和平第二小学、和平第三小学、铁西第一小学 | G12: 小学数学教师（项目人员岗位） | H12: 66.6 | I12: 55.500 | K12: 55.500 | L12: 3 | M12: 2 | N12: 83 | O12: 27.750 | P12: 41.5 | Q12: 69.250 | R12: 3 | S12: 2018-02-01
A13: 04633 | B13: 萨日娜 | C13: 13022031712 | D13: 女 | E13: 蒙古族 | F13: 兴安第一小学、合展小学、和平第一小学、和平第二小学、和平第三小学、铁西第一小学 | G13: 小学数学教师（项目人员岗位） | H13: 59.2 | I13: 49.333 | J13: 2.5 | K13: 51.833 | L13: 6 | M13: 2 | N13: 84.8 | O13: 25.917 | P13: 42.4 | Q13: 68.317 | R13: 4 | S13: 2018-02-01
A14: 00933 | B14: 张娜 | C14: 13022031810 | D14: 女 | E14: 蒙古族 | F14: 兴安第一小学、合展小学、和平第一小学、和平第二小学、和平第三小学、铁西第一小学 | G14: 小学数学教师（项目人员岗位） | H14: 55.4 | I14: 46.167 | J14: 2.5 | K14: 48.667 | L14: 11 | M14: 2 | N14: 87.2 | O14: 24.333 | P14: 43.6 | Q14: 67.933 | R14: 5 | S14: 2018-02-01
A15: 00918 | B15: 卜天姣 | C15: 13522050717 | D15: 女 | E15: 蒙古族 | F15: 小学语文教师岗位（具体招聘单位见提示） | G15: 小学语文教师（项目人员岗位） | H15: 73.4 | I15: 61.167 | J15: 2.5 | K15: 63.667 | L15: 3 | M15: 3 | N15: 91.6 | O15: 31.833 | P15: 45.8 | Q15: 77.633 | R15: 1 | S15: 2018-02-01
A16: 04894 | B16: 李萍萍 | C16: 13522050421 | D16: 女 | E16: 蒙古族 | F16: 小学语文教师岗位（具体招聘单位见提示） | G16: 小学语文教师（项目人员岗位） | H16: 75 | I16: 62.500 | J16: 2.5 | K16: 65.000 | L16: 2 | M16: 3 | N16: 90.2 | O16: 32.500 | P16: 45.1 | Q16: 77.600 | R16: 2 | S16: 2018-02-01
A17: 03151 | B17: 戚晓爽 | C17: 13522050513 | D17: 女 | E17: 汉族 | F17: 小学语文教师岗位（具体招聘单位见提示） | G17: 小学语文教师（项目人员岗位） | H17: 71.8 | I17: 59.833 | K17: 59.833 | L17: 8 | M17: 3 | N17: 93.2 | O17: 29.917 | P17: 46.6 | Q17: 76.517 | R17: 3 | S17: 2018-02-01
A18: 00253 | B18: 王佳 | C18: 13522050614 | D18: 女 | E18: 汉族 | F18: 小学语文教师岗位（具体招聘单位见提示） | G18: 小学语文教师（项目人员岗位） | H18: 68.1 | I18: 56.750 | K18: 56.750 | L18: 18 | M18: 3 | N18: 95.8 | O18: 28.375 | P18: 47.9 | Q18: 76.275 | R18: 4 | S18: 2018-02-01
A19: 05106 | B19: 吴丽丽 | C19: 13522050419 | D19: 女 | E19: 蒙古族 | F19: 小学语文教师岗位（具体招聘单位见提示） | G19: 小学语文教师（项目人员岗位） | H19: 70.4 | I19: 58.667 | J19: 2.5 | K19: 61.167 | L19: 7 | M19: 3 | N19: 90.2 | O19: 30.583 | P19: 45.1 | Q19: 75.683 | R19: 5 | S19: 2018-02-01
A20: 00877 | B20: 常苗苗 | C20: 13522050323 | D20: 女 | E20: 汉族 | F20: 小学语文教师岗位（具体招聘单位见提示） | G20: 小学语文教师（项目人员岗位） | H20: 71.6 | I20: 59.667 | K20: 59.667 | L20: 10 | M20: 3 | N20: 91.4 | O20: 29.833 | P20: 45.7 | Q20: 75.533 | R20: 6 | S20: 2018-02-01
A21: 03557 | B21: 武婷婷 | C21: 13522042410 | D21: 女 | E21: 蒙古族 | F21: 小学语文教师岗位（具体招聘单位见提示） | G21: 小学语文教师（项目人员岗位） | H21: 65.5 | I21: 54.583 | J21: 2.5 | K21: 57.083 | L21: 16 | M21: 3 | N21: 93.8 | O21: 28.542 | P21: 46.9 | Q21: 75.442 | R21: 7 | S21: 2018-02-01
A22: 01443 | B22: 祁文超 | C22: 13522050321 | D22: 女 | E22: 蒙古族 | F22: 小学语文教师岗位（具体招聘单位见提示） | G22: 小学语文教师（项目人员岗位） | H22: 71.4 | I22: 59.500 | J22: 2.5 | K22: 62.000 | L22: 4 | M22: 4 | N22: 92.4 | O22: 31.000 | P22: 46.2 | Q22: 77.200 | R22: 1 | S22: 2018-02-01
A23: 03345 | B23: 窦园园 | C23: 13522050225 | D23: 女 | E23: 汉族 | F23: 小学语文教师岗位（具体招聘单位见提示） | G23: 小学语文教师（项目人员岗位） | H23: 71.7 | I23: 59.750 | K23: 59.750 | L23: 9 | M23: 4 | N23: 93.6 | O23: 29.875 | P23: 46.8 | Q23: 76.675 | R23: 2 | S23: 2018-02-01
A24: 05180 | B24: 苏日娜 | C24: 13522050915 | D24: 女 | E24: 蒙古族 | F24: 小学语文教师岗位（具体招聘单位见提示） | G24: 小学语文教师（项目人员岗位） | H24: 65.7 | I24: 54.750 | J24: 2.5 | K24: 57.250 | L24: 14 | M24: 4 | N24: 94.2 | O24: 28.625 | P24: 47.1 | Q24: 75.725 | R24: 3 | S24: 2018-02-01
A25: 05236 | B25: 郭阿如娜 | C25: 13522050815 | D25: 女 | E25: 蒙古族 | F25: 小学语文教师岗位（具体招聘单位见提示） | G25: 小学语文教师（项目人员岗位） | H25: 71.4 | I25: 59.500 | J25: 2.5 | K25: 62.000 | L25: 5 | M25: 4 | N25: 89.2 | O25: 31.000 | P25: 44.6 | Q25: 75.600 | R25: 4 | S25: 2018-02-01
A26: 02057 | B26: 田鸿丹 | C26: 13522050923 | D26: 女 | E26: 汉族 | F26: 小学语文教师岗位（具体招聘单位见提示） | G26: 小学语文教师（项目人员岗位） | H26: 70.1 | I26: 58.417 | K26: 58.417 | L26: 11 | M26: 4 | N26: 89.2 | O26: 29.208 | P26: 44.6 | Q26: 73.808 | R26: 5 | S26: 2018-02-01
A27: 00249 | B27: 周金颖 | C27: 13522051515 | D27: 女 | E27: 其他少数民族 | F27: 小学语文教师岗位（具体招聘单位见提示） | G27: 小学语文教师（项目人员岗位） | H27: 68.7 | I27: 57.250 | K27: 57.250 | L27: 15 | M27: 4 | N27: 90.2 | O27: 28.625 | P27: 45.1 | Q27: 73.725 | R27: 6 | S27: 2018-02-01
A28: 00551 | B28: 赵英双 | C28: 13522050922 | D28: 女 | E28: 汉族 | F28: 小学语文教师岗位（具体招聘单位见提示） | G28: 小学语文教师（项目人员岗位） | H28: 65.7 | I28: 54.750 | K28: 54.750 | L28: 22 | M28: 4 | N28: 91.6 | O28: 27.375 | P28: 45.8 | Q28: 73.175 | R28: 7 | S28: 2018-02-01
A29: 05759 | B29: 刘琦 | C29: 12822032709 | D29: 女 | E29: 汉族 | F29: 第六中学、第七中学、第十二中学 | G29: 初中语文教师（项目人员岗位） | H29: 61.8 | I29: 51.500 | K29: 51.500 | L29: 2 | M29: 5 | N29: 93.2 | O29: 25.750 | P29: 46.6 | Q29: 72.350 | R29: 1 | S29: 2018-02-01
A30: 03399 | B30: 王世梅 | C30: 12822031122 | D30: 女 | E30: 蒙古族 | F30: 第六中学、第七中学、第十二中学 | G30: 初中语文教师（项目人员岗位） | H30: 60.7 | I30: 50.583 | J30: 2.5 | K30: 53.083 | L30: 1 | M30: 5 | N30: 80.8 | O30: 26.542 | P30: 40.4 | Q30: 66.942 | R30: 2 | S30: 2018-02-01
A31: 05880 | B31: 崔海弦 | C31: 12822031124 | D31: 女 | E31: 汉族 | F31: 第六中学、第七中学、第十二中学 | G31: 初中语文教师（一般人员岗位） | H31: 86.8 | I31: 72.333 | K31: 72.333 | L31: 1 | M31: 5 | N31: 93 | O31: 36.167 | P31: 46.5 | Q31: 82.667 | R31: 1 | S31: 2018-02-01
A32: 04517 | B32: 党丽丽 | C32: 12822031128 | D32: 女 | E32: 汉族 | F32: 第六中学、第七中学、第十二中学 | G32: 初中语文教师（一般人员岗位） | H32: 81.7 | I32: 68.083 | K32: 68.083 | L32: 3 | M32: 5 | N32: 90.6 | O32: 34.042 | P32: 45.3 | Q32: 79.342 | R32: 2 | S32: 2018-02-01
A33: 01426 | B33: 安答 | C33: 11922032705 | D33: 女 | E33: 蒙古族 | F33: 第四中学 | G33: 高中语文教师（项目人员岗位） | H33: 60.5 | I33: 50.417 | J33: 2.5 | K33: 52.917 | L33: 1 | M33: 5 | N33: 85.2 | O33: 26.458 | P33: 42.6 | Q33: 69.058 | R33: 1 | S33: 2018-02-01
A34: 00020 | B34: 胡婷婷 | C34: 11922030111 | D34: 女 | E34: 蒙古族 | F34: 第四中学 | G34: 高中语文教师（一般人员岗位） | H34: 82 | I34: 68.333 | J34: 2.5 | K34: 70.833 | L34: 1 | M34: 5 | N34: 90.6 | O34: 35.417 | P34: 45.3 | Q34: 80.717 | R34: 1 | S34: 2018-02-01
A35: 02460 | B35: 王阳阳 | C35: 11922030105 | D35: 女 | E35: 汉族 | F35: 第四中学 | G35: 高中语文教师（一般人员岗位） | H35: 77.5 | I35: 64.583 | K35: 64.583 | L35: 5 | M35: 5 | N35: 90.6 | O35: 32.292 | P35: 45.3 | Q35: 77.592 | R35: 2 | S35: 2018-02-01
A36: 04040 | B36: 刘秋红 | C36: 13522050220 | D36: 女 | E36: 其他少数民族 | F36: 小学语文教师岗位（具体招聘单位见提示） | G36: 小学语文教师（一般人员岗位） | H36: 85.8 | I36: 71.500 | K36: 71.500 | L36: 1 | M36: 5 | N36: 90.8 | O36: 35.750 | P36: 45.4 | Q36: 81.150 | R36: 1 | S36: 2018-02-01
A37: 04905 | B37: 王欢 | C37: 13522050714 | D37: 女 | E37: 蒙古族 | F37: 小学语文教师岗位（具体招聘单位见提示） | G37: 小学语文教师（一般人员岗位） | H37: 80.3 | I37: 66.917 | J37: 2.5 | K37: 69.417 | L37: 3 | M37: 5 | N37: 89.8 | O37: 34.708 | P37: 44.9 | Q37: 79.608 | R37: 2 | S37: 2018-02-01
A38: 02376 | B38: 刘贺 | C38: 13522051027 | D38: 女 | E38: 汉族 | F38: 小学语文教师岗位（具体招聘单位见提示） | G38: 小学语文教师（一般人员岗位） | H38: 80.1 | I38: 66.750 | K38: 66.750 | L38: 5 | M38: 5 | N38: 92.4 | O38: 33.375 | P38: 46.2 | Q38: 79.575 | R38: 3 | S38: 2018-02-01
A39: 04950 | B39: 陈会 | C39: 13522050402 | D39: 女 | E39: 汉族 | F39: 小学语文教师岗位（具体招聘单位见提示） | G39: 小学语文教师（一般人员岗位） | H39: 80.5 | I39: 67.083 | K39: 67.083 | L39: 4 | M39: 5 | N39: 89.8 | O39: 33.542 | P39: 44.9 | Q39: 78.442 | R39: 4 | S39: 2018-02-01
A40: 00055 | B40: 付萍萍 | C40: 13522050116 | D40: 女 | E40: 其他少数民族 | F40: 小学语文教师岗位（具体招聘单位见提示） | G40: 小学语文教师（一般人员岗位） | H40: 83.5 | I40: 69.583 | K40: 69.583 | L40: 2 | M40: 5 | N40: 86.6 | O40: 34.792 | P40: 43.3 | Q40: 78.092 | R40: 5 | S40: 2018-02-02
A41: 02973 | B41: 吴丹 | C41: 12322030623 | D41: 女 | E41: 蒙古族 | F41: 第四中学、第十五中学 | G41: 高中英语教师（项目人员岗位） | H41: 85.4 | I41: 71.167 | J41: 2.5 | K41: 73.667 | L41: 2 | M41: 6 | N41: 90.8 | O41: 36.833 | P41: 45.4 | Q41: 82.233 | R41: 1 | S41: 2018-02-02
A42: 05226 | B42: 肖吉木斯 | C42: 12322030513 | D42: 女 | E42: 蒙古族 | F42: 第四中学、第十五中学 | G42: 高中英语教师（一般人员岗位） | H42: 104.1 | I42: 86.750 | J42: 2.5 | K42: 89.250 | L42: 1 | M42: 6 | N42: 89 | O42: 44.625 | P42: 44.5 | Q42: 89.125 | R42: 1 | S42: 2018-02-02
A43: 04159 | B43: 王黎丽 | C43: 13422042019 | D43: 女 | E43: 汉族 | F43: 合展小学、红云希望小学、铁西第二小学 | G43: 小学英语教师（项目人员岗位） | H43: 85.6 | I43: 71.333 | K43: 71.333 | L43: 2 | M43: 6 | N43: 89.8 | O43: 35.667 | P43: 44.9 | Q43: 80.567 | R43: 1 | S43: 2018-02-02
A44: 04790 | B44: 徐艳 | C44: 13422041328 | D44: 女 | E44: 其他少数民族 | F44: 合展小学、红云希望小学、铁西第二小学 | G44: 小学英语教师（项目人员岗位） | H44: 88.7 | I44: 73.917 | K44: 73.917 | L44: 1 | M44: 6 | N44: 84.6 | O44: 36.958 | P44: 42.3 | Q44: 79.258 | R44: 2 | S44: 2018-02-02
A45: 02472 | B45: 邵雅婷 | C45: 13422041301 | D45: 女 | E45: 蒙古族 | F45: 合展小学、红云希望小学、铁西第二小学 | G45: 小学英语教师（一般人员岗位） | H45: 84.3 | I45: 70.250 | J45: 2.5 | K45: 72.750 | L45: 2 | M45: 6 | N45: 92.4 | O45: 36.375 | P45: 46.2 | Q45: 82.575 | R45: 1 | S45: 2018-02-02
A46: 00805 | B46: 姜月 | C46: 13422041416 | D46: 女 | E46: 其他少数民族 | F46: 合展小学、红云希望小学、铁西第二小学 | G46: 小学英语教师（一般人员岗位） | H46: 84.4 | I46: 70.333 | K46: 70.333 | L46: 4 | M46: 6 | N46: 91 | O46: 35.167 | P46: 45.5 | Q46: 80.667 | R46: 2 | S46: 2018-02-02
A47: 05467 | B47: 包圆圆 | C47: 12422033112 | D47: 女 | E47: 蒙古族 | F47: 第五中学、第十三中学 | G47: 初中化学教师（一般人员岗位） | H47: 76.6 | I47: 63.833 | J47: 2.5 | K47: 66.333 | L47: 2 | M47: 7 | N47: 86.8 | O47: 33.167 | P47: 43.4 | Q47: 76.567 | R47: 1 | S47: 2018-02-02
A48: 03298 | B48: 陈小双 | C48: 12422030706 | D48: 女 | E48: 汉族 | F48: 第五中学、第十三中学 | G48: 初中化学教师（一般人员岗位） | H48: 82.4 | I48: 68.667 | K48: 68.667 | L48: 1 | M48: 7 | N48: 81.8 | O48: 34.333 | P48: 40.9 | Q48: 75.233 | R48: 2 | S48: 2018-02-02
A49: 04196 | B49: 包寒生 | C49: 12722033025 | D49: 男 | E49: 蒙古族 | F49: 第七中学 | G49: 初中物理教师（一般人员岗位） | H49: 98 | I49: 81.667 | J49: 2.5 | K49: 84.167 | L49: 1 | M49: 7 | N49: 83.6 | O49: 42.083 | P49: 41.8 | Q49: 83.883 | R49: 1 | S49: 2018-02-02
A50: 04299 | B50: 徐珊 | C50: 11722023516 | D50: 女 | E50: 汉族 | F50: 第四中学 | G50: 高中化学教师（一般人员岗位） | H50: 82.4 | I50: 68.667 | K50: 68.667 | L50: 2 | M50: 7 | N50: 86.6 | O50: 34.333 | P50: 43.3 | Q50: 77.633 | R50: 1 | S50: 2018-02-02
A51: 03661 | B51: 关浩 | C51: 11822032605 | D51: 男 | E51: 其他少数民族 | F51: 第四中学 | G51: 高中物理教师（一般人员岗位） | H51: 92.2 | I51: 76.833 | K51: 76.833 | L51: 1 | M51: 7 | N51: 84.4 | O51: 38.417 | P51: 42.2 | Q51: 80.617 | R51: 1 | S51: 2018-02-02
A52: 00998 | B52: 王洋 | C52: 12522030825 | D52: 女 | E52: 其他少数民族 | F52: 第六中学、第七中学 | G52: 初中历史教师（项目人员岗位） | H52: 89.7 | I52: 74.750 | K52: 74.750 | L52: 1 | M52: 8 | N52: 89.2 | O52: 37.375 | P52: 44.6 | Q52: 81.975 | R52: 1 | S52: 2018-02-02
A53: 00960 | B53: 孙朋 | C53: 12522033210 | D53: 男 | E53: 蒙古族 | F53: 第六中学、第七中学 | G53: 初中历史教师（一般人员岗位） | H53: 94.8 | I53: 79.000 | J53: 2.5 | K53: 81.500 | L53: 1 | M53: 8 | N53: 88.8 | O53: 40.750 | P53: 44.4 | Q53: 85.150 | R53: 1 | S53: 2018-02-02
A54: 03245 | B54: 霍永红 | C54: 12022030203 | D54: 女 | E54: 蒙古族 | F54: 第四中学、第十五中学 | G54: 高中生物教师（项目人员岗位） | H54: 89.2 | I54: 74.333 | J54: 2.5 | K54: 76.833 | L54: 1 | M54: 8 | N54: 79 | O54: 38.417 | P54: 39.5 | Q54: 77.917 | R54: 1 | S54: 2018-02-02
A55: 01557 | B55: 葛漫丽 | C55: 12022030221 | D55: 女 | E55: 汉族 | F55: 第四中学、第十五中学 | G55: 高中生物教师（一般人员岗位） | H55: 96.1 | I55: 80.083 | K55: 80.083 | L55: 1 | M55: 8 | N55: 87.4 | O55: 40.042 | P55: 43.7 | Q55: 83.742 | R55: 1 | S55: 2018-02-02
A56: 01936 | B56: 张志强 | C56: 12222030319 | D56: 女 | E56: 蒙古族 | F56: 第四中学、第十五中学 | G56: 高中信息技术（一般人员岗位） | H56: 75.8 | I56: 63.167 | J56: 2.5 | K56: 65.667 | L56: 1 | M56: 8 | N56: 91.2 | O56: 32.833 | P56: 45.6 | Q56: 78.433 | R56: 1 | S56: 2018-02-02
A57: 02956 | B57: 巴特尔 | C57: 12222030312 | D57: 男 | E57: 蒙古族 | F57: 第四中学、第十五中学 | G57: 高中信息技术教师（项目人员岗位） | H57: 78.3 | I57: 65.250 | J57: 2.5 | K57: 67.750 | L57: 1 | M57: 8 | N57: 91.8 | O57: 33.875 | P57: 45.9 | Q57: 79.775 | R57: 1 | S57: 2018-02-02
A58: 04158 | B58: 陈亚男 | C58: 13222042605 | D58: 女 | E58: 蒙古族 | F58: 和平第一小学、铁西第二小学 | G58: 小学信息技术教师（项目人员岗位） | H58: 63.3 | I58: 52.750 | J58: 2.5 | K58: 55.250 | L58: 1 | M58: 8 | N58: 90 | O58: 27.625 | P58: 45 | Q58: 72.625 | R58: 1 | S58: 2018-02-02
A59: 03327 | B59: 吴小芳 | C59: 13222042615 | D59: 女 | E59: 蒙古族 | F59: 和平第一小学、铁西第二小学 | G59: 小学信息技术教师（一般人员岗位） | H59: 83.7 | I59: 69.750 | J59: 2.5 | K59: 72.250 | L59: 1 | M59: 8 | N59: 92 | O59: 36.125 | P59: 46 | Q59: 82.125 | R59: 1 | S59: 2018-02-02
A60: 00386 | B60: 乌日乐嘎 | C60: 32922023406 | D60: 女 | E60: 其他少数民族 | F60: 合展小学、红云希望小学、爱国第二小学、教师进修学校附属五一小学 | G60: 小学美术教师（蒙汉兼通人员岗位） | H60: 79.8 | I60: 66.500 | K60: 66.500 | L60: 1 | M60: 9 | N60: 89 | O60: 33.250 | P60: 44.5 | Q60: 77.750 | R60: 1 | S60: 2018-02-02
A61: 02635 | B61: 成格乐 | C61: 32922033329 | D61: 男 | E61: 蒙古族 | F61: 合展小学、红云希望小学、爱国第二小学、教师进修学校附属五一小学 | G61: 小学美术教师（蒙汉兼通人员岗位） | H61: 66 | I61: 55.000 | J61: 2.5 | K61: 57.500 | L61: 2 | M61: 9 | N61: 90.2 | O61: 28.750 | P61: 45.1 | Q61: 73.850 | R61: 2 | S61: 2018-02-02
A62: 00259 | B62: 王玉蓉 | C62: 12922031521 | D62: 女 | E62: 其他少数民族 | F62: 合展小学、红云希望小学、爱国第二小学、教师进修学校附属五一小学 | G62: 小学美术教师（一般人员岗位） | H62: 97.2 | I62: 81.000 | K62: 81.000 | L62: 2 | M62: 9 | N62: 92.2 | O62: 40.500 | P62: 46.1 | Q62: 86.600 | R62: 1 | S62: 2018-02-02
A63: 02831 | B63: 顾玉龙 | C63: 12922032821 | D63: 男 | E63: 其他少数民族 | F63: 合展小学、红云希望小学、爱国第二小学、教师进修学校附属五一小学 | G63: 小学美术教师（一般人员岗位） | H63: 96.3 | I63: 80.250 | K63: 80.250 | L63: 3 | M63: 9 | N63: 91.8 | O63: 40.125 | P63: 45.9 | Q63: 86.025 | R63: 2 | S63: 2018-02-02
A64: 05075 | B64: 赵刚 | C64: 33322033503 | D64: 男 | E64: 蒙古族 | F64: 兴安第二小学、合展小学、胜利第一小学、教师进修学校附属五一小学、都林第一小学、永联第二小学 | G64: 小学音乐教师（蒙汉兼通人员岗位） | H64: 57 | I64: 47.500 | J64: 2.5 | K64: 50.000 | L64: 1 | M64: 9 | N64: 90 | O64: 25.000 | P64: 45 | Q64: 70.000 | R64: 1 | S64: 2018-02-02
A65: 03186 | B65: 胡杰桃 | C65: 33322032509 | D65: 女 | E65: 蒙古族 | F65: 兴安第二小学、合展小学、胜利第一小学、教师进修学校附属五一小学、都林第一小学、永联第二小学 | G65: 小学音乐教师（蒙汉兼通人员岗位） | H65: 51.3 | I65: 42.750 | J65: 2.5 | K65: 45.250 | L65: 4 | M65: 9 | N65: 90.6 | O65: 22.625 | P65: 45.3 | Q65: 67.925 | R65: 2 | S65: 2018-02-02
A66: 01982 | B66: 陈玲玲 | C66: 33322032512 | D66: 女 | E66: 蒙古族 | F66: 兴安第二小学、合展小学、胜利第一小学、教师进修学校附属五一小学、都林第一小学、永联第二小学 | G66: 小学音乐教师（蒙汉兼通人员岗位） | H66: 54.9 | I66: 45.750 | J66: 2.5 | K66: 48.250 | L66: 2 | M66: 9 | N66: 87.4 | O66: 24.125 | P66: 43.7 | Q66: 67.825 | R66: 3 | S66: 2018-02-02
A67: 00045 | B67: 敖民 | C67: 33322033507 | D67: 女 | E67: 蒙古族 | F67: 兴安第二小学、合展小学、胜利第一小学、教师进修学校附属五一小学、都林第一小学、永联第二小学 | G67: 小学音乐教师（蒙汉兼通人员岗位） | H67: 49.2 | I67: 41.000 | J67: 2.5 | K67: 43.500 | L67: 5 | M67: 9 | N67: 85.8 | O67: 21.750 | P67: 42.9 | Q67: 64.650 | R67: 4 | S67: 2018-02-02
A68: 03258 | B68: 张晓敏 | C68: 13322040503 | D68: 女 | E68: 汉族 | F68: 兴安第二小学、合展小学、胜利第一小学、教师进修学校附属五一小学、都林第一小学、永联第二小学 | G68: 小学音乐教师（一般人员岗位） | H68: 76.2 | I68: 63.500 | K68: 63.500 | L68: 2 | M68: 9 | N68: 89.6 | O68: 31.750 | P68: 44.8 | Q68: 76.550 | R68: 1 | S68: 2018-02-02
A69: 02051 | B69: 姚胜男 | C69: 13322040629 | D69: 女 | E69: 蒙古族 | F69: 兴安第二小学、合展小学、胜利第一小学、教师进修学校附属五一小学、都林第一小学、永联第二小学 | G69: 小学音乐教师（一般人员岗位） | H69: 71.7 | I69: 59.750 | J69: 2.5 | K69: 62.250 | L69: 6 | M69: 9 | N69: 90.4 | O69: 31.125 | P69: 45.2 | Q69: 76.325 | R69: 2 | S69: 2018-02-02
A70: 03811 | B70: 刘永军 | C70: 33122032408 | D70: 男 | E70: 蒙古族 | F70: 兴安第一小学、兴安第二小学、合展小学、胜利第一小学、和平第三小学 | G70: 小学体育教师（蒙汉兼通人员岗位） | H70: 71.3 | I70: 59.417 | J70: 2.5 | K70: 61.917 | L70: 4 | M70: 10 | N70: 91.8 | O70: 30.958 | P70: 45.9 | Q70: 76.858 | R70: 1 | S70: 2018-02-02
A71: 01063 | B71: 包初一 | C71: 33122032425 | D71: 男 | E71: 蒙古族 | F71: 兴安第一小学、兴安第二小学、合展小学、胜利第一小学、和平第三小学 | G71: 小学体育教师（蒙汉兼通人员岗位） | H71: 76.2 | I71: 63.500 | J71: 2.5 | K71: 66.000 | L71: 1 | M71: 10 | N71: 87.6 | O71: 33.000 | P71: 43.8 | Q71: 76.800 | R71: 2 | S71: 2018-02-02
A72: 03417 | B72: 安智敏 | C72: 33122033412 | D72: 男 | E72: 蒙古族 | F72: 兴安第一小学、兴安第二小学、合展小学、胜利第一小学、和平第三小学 | G72: 小学体育教师（蒙汉兼通人员岗位） | H72: 70.3 | I72: 58.583 | J72: 2.5 | K72: 61.083 | L72: 5 | M72: 10 | N72: 87 | O72: 30.542 | P72: 43.5 | Q72: 74.042 | R72: 3 | S72: 2018-02-02
A73: 02308 | B73: 呼格吉乐 | C73: 33122032419 | D73: 男 | E73: 蒙古族 | F73: 兴安第一小学、兴安第二小学、合展小学、胜利第一小学、和平第三小学 | G73: 小学体育教师（蒙汉兼通人员岗位） | H73: 66.1 | I73: 55.083 | J73: 2.5 | K73: 57.583 | L73: 10 | M73: 10 | N73: 89 | O73: 28.792 | P73: 44.5 | Q73: 73.292 | R73: 4 | S73: 2018-02-02
A74: 01703 | B74: 郭双虎 | C74: 33122032405 | D74: 男 | E74: 蒙古族 | F74: 兴安第一小学、兴安第二小学、合展小学、胜利第一小学、和平第三小学 | G74: 小学体育教师（蒙汉兼通人员岗位） | H74: 64.8 | I74: 54.000 | J74: 2.5 | K74: 56.500 | L74: 11 | M74: 10 | N74: 88.2 | O74: 28.250 | P74: 44.1 | Q74: 72.350 | R74: 5 | S74: 2018-02-02
A75: 03137 | B75: 贾红梅 | C75: 13122032101 | D75: 女 | E75: 蒙古族 | F75: 兴安第一小学、兴安第二小学、合展小学、胜利第一小学、和平第三小学 | G75: 小学体育教师（一般人员岗位） | H75: 89 | I75: 74.167 | J75: 2.5 | K75: 76.667 | L75: 4 | M75: 10 | N75: 93 | O75: 38.333 | P75: 46.5 | Q75: 84.833 | R75: 1 | S75: 2018-02-02
A76: 00021 | B76: 柳冰 | C76: 13122040127 | D76: 女 | E76: 汉族 | F76: 兴安第一小学、兴安第二小学、合展小学、胜利第一小学、和平第三小学 | G76: 小学体育教师（一般人员岗位） | H76: 92 | I76: 76.667 | K76: 76.667 | L76: 3 | M76: 10 | N76: 92 | O76: 38.333 | P76: 46 | Q76: 84.333 | R76: 2 | S76: 2018-02-02
D80: 75
